Cogmind - Beta 16.1 @@@ ROGUE MODE // 2026.02.11 @ 10:53:14 Player: Lintence Result: Self-destructed Performance ------------- Evolutions (2) 1000 Regions Visited (3) 600 Robots Destroyed (13) 65 Value Destroyed (183) 183 Prototype IDs (0) 0 Alien Tech Used (0) 0 Bonus (0) 0 TOTAL SCORE: 1848 Bonus ------- None Cogmind --------- Core Integrity 438/550 Matter 260/300 Energy 265/265 System Corruption 0% Temperature Cool (8) Movement Walking (120) Location -8/Materials Parts ------- > --- POWER (1) -------- Improved Ion Engine > --- PROPULSION (4) --- Improved Aluminum Leg Improved Aluminum Leg Improved Aluminum Leg > --- UTILITY (4) ------ Small Storage Unit Structural Scanner Machine Analyzer Visual Processing Unit > --- WEAPON (2) ------- Medium Laser > --- INVENTORY (8) ---- Ion Engine Airjet Improved Sensor Array Grenade Launcher Hammer Peak State ------------ > --- POWER ------------ Improved Ion Engine > --- PROPULSION ------- Improved Aluminum Leg Improved Aluminum Leg Improved Aluminum Leg Improved Aluminum Leg > --- UTILITY ---------- Small Storage Unit Structural Scanner Machine Analyzer Visual Processing Unit > --- WEAPON ----------- EM Pulse Gun EM Pulse Gun > --- INVENTORY -------- Ion Engine Airjet Improved Sensor Array Medium Laser Grenade Launcher Hammer [Rating: 20] Favorites ----------- Power Ion Engine Engine Ion Engine Propulsion Improved Aluminum Leg Leg Improved Aluminum Leg Utility Small Storage Unit Device Structural Scanner Storage Small Storage Unit Processor Visual Processing Unit Weapon EM Pulse Gun Energy Gun EM Pulse Gun Launcher Grenade Launcher Build | -11 -10 -10 -8 ------- Run | Yrd Mat Sub Mat Slots Evolved 4 | . . . 4 Power . | . . . . Propulsion 2 | . . . 2 Utility 2 | . . . 2 Weapon . | . . . . Parts Attached 18 | 6 7 2 3 Power 3 | 1 1 1 . Engine 3 | 1 1 1 . Core . | . . . . Reactor . | . . . . Propulsion 6 | 2 2 . 2 Treads . | . . . . Leg 6 | 2 2 . 2 Wheel . | . . . . Hover . | . . . . Flight . | . . . . Utility 4 | 1 1 1 1 Device 1 | . 1 . . Storage 1 | 1 . . . Processor 2 | . . 1 1 Hackware . | . . . . Protection . | . . . . Artifact . | . . . . Weapon 5 | 2 3 . . Energy Gun 4 | 2 2 . . Energy Cannon . | . . . . Ballistic Gun . | . . . . Ballistic Cannon . | . . . . Launcher 1 | . 1 . . Special Weapon . | . . . . Impact Weapon . | . . . . Slashing Weapon . | . . . . Piercing Weapon . | . . . . Special Melee Weapon . | . . . . Unidentified Prototypes . | . . . . Corrupted Parts 1 | . 1 . . System Corruption 1 | . 1 . . Parts Lost 2 | . . . 2 Power . | . . . . Propulsion . | . . . . Utility . | . . . . Weapon 2 | . . . 2 Highest Loss Streak 2 | . . . 2 To Critical Strikes . | . . . . Average Backups 5 | 1 4 8 5 Power 1 | . 1 1 1 Propulsion . | . . 2 . Utility . | . . 1 1 Weapon 2 | . 2 3 2 Tool/Special . | . . . . Unused Backups 7 | . 3 1 3 Power 1 | . 1 . . Propulsion 3 | . 2 . 1 Utility 1 | . . . 1 Weapon 2 | . . 1 1 Tool/Special . | . . . . Average Slot Usage (%) 95 | . 93 100 94 Engine 13 | . 14 14 9 Leg 29 | . 28 28 35 Device 6 | . 8 2 8 Storage 13 | . 14 14 9 Processor 6 | . . 11 17 Energy Gun 23 | . 27 23 15 Launcher 1 | . . 4 . Peak Build Rating 20 | 6 10 12 20 Average Rating 9 | 4 7 11 18 On Entrance 7 | . 6 10 12 Avg Prop Armor Cover (%) . | . . . . Naked Turns . | . . . . Heaviest Build 17 | 14 16 16 17 Greatest Support 52 | 20 26 26 52 Greatest Overweight (x) 2 | 2 . . . Average Overweight (x) . | . . . . Largest Inventory Capacity 8 | 8 8 8 8 Average Capacity 7 | 6 8 8 8 Most Carried 8 | 2 8 8 7 Average Carried 5 | 1 5 7 5 Final Capacity 8 | 8 8 8 8 Final Carried 8 | 2 8 8 5 Class Distribution -------------------- 100% | Mutant Dominant Class ---------------- Mutant | -10/Materials Mutant | -10/Subcaves Mutant | -8/Materials Resources | -11 -10 -10 -8 ----------- Run | Yrd Mat Sub Mat Matter Collected 450 | 223 127 100 . Remotely . | . . . . Salvage Created 241 | . 168 73 . Parts 25 | . 14 11 . Haulers Intercepted . | . . . . Recyclers Shooed 1 | . 1 . . Parts Field Recycled . | . . . . Retrieved Matter . | . . . . Parts Self-Destructed 12 | . . 12 . Prevented . | . . . . Parts Restored . | . . . . Kills | -11 -10 -10 -8 ------- Run | Yrd Mat Sub Mat Combat Hostiles Destroyed 8 | . 4 4 . Guns 2 | . 1 1 . AOE 6 | . 3 3 . Classes Destroyed 8 | . 7 1 . Worker 1 | . 1 . . Builder 1 | . 1 . . Recycler 1 | . 1 . . Operator 1 | . 1 . . Watcher 1 | . 1 . . Swarmer 6 | . 3 3 . Grunt 1 | . 1 . . Sentry 1 | . . 1 . Best Kill Streak 7 | . 7 3 . Combat Bots Only 3 | . 3 3 . Max Kills in Single Turn 3 | . 3 2 . Gunslinging . | . . . . Exploded 2 | . 1 2 . Melee . | . . . . Uniques/NPCs Destroyed . | . . . . Combat | -11 -10 -10 -8 -------- Run | Yrd Mat Sub Mat Hostile Shots Fired 64 | . 18 13 33 Missed 20 | . 8 4 8 Hits 44 | . 10 9 25 Melee 6 | . . . 6 Projectile 38 | . 10 9 19 Critical Strikes 3 | . . 1 2 Damage Taken 670 | . 88 93 489 Core 136 | . 1 23 112 Absorbed by Shields . | . . . . Core Remaining (%) 95 | 100 . 90 . Volleys Fired 32 | . 17 5 10 Largest 2 | . 2 2 2 Hottest 90 | . 90 80 90 Shots Fired 55 | . 31 8 16 Gun 49 | . 27 6 16 Cannon . | . . . . Launcher 6 | . 4 2 . Special . | . . . . Kinetic . | . . . . Thermal 23 | . 17 . 6 Explosive 6 | . 4 2 . Electromagnetic 26 | . 10 6 10 Robot Hit Streak 8 | . 7 2 8 Robot Miss Streak 3 | . 3 2 3 Penetration Max . | . . . . Secondary Targets . | . . . . Shots Hit Robots 30 | . 16 3 11 Core Hits 20 | . 11 7 2 Critical Kills . | . . . . Critical Parts Destroyed . | . . . . Critical Strikes 3 | . 1 . 2 Burn 3 | . 1 . 2 Melee Attacks . | . . . . Impact . | . . . . Slashing . | . . . . Piercing . | . . . . Sneak Attacks . | . . . . Combat Hostiles . | . . . . Follow-up Attacks . | . . . . Damage Inflicted 897 | . 618 151 128 Guns 374 | . 214 32 128 Cannons . | . . . . Explosions 523 | . 404 119 . Melee . | . . . . Ramming . | . . . . Kinetic . | . . . . Thermal 225 | . 176 . 49 Explosive 492 | . 373 119 . Electromagnetic 180 | . 69 32 79 Impact . | . . . . Slashing . | . . . . Piercing . | . . . . Highest Corruption 1 | . 1 1 . Average Corruption 1 | . 1 1 . Corruption Purged . | . . . . Corruption Blocked . | . . . . Effects 2 | . 1 1 . Message Errors 1 | . . 1 . Misfires 1 | . 1 . . Overload Shots . | . . . . Overflow Damage 9 | . 9 . . Projectiles . | . . . . Explosions 9 | . 9 . . Melee . | . . . . Knockbacks . | . . . . Impact . | . . . . Kinetic . | . . . . Secondary . | . . . . Self-Inflicted Damage 4 | . 4 . . Shots 1 | . 1 . . Rammed . | . . . . Targets Rammed . | . . . . Kicked . | . . . . Crushed . | . . . . Highest Temperature 150 | . 150 13 57 Average Temperature 41 | . 52 13 21 Received Heat Transfer 174 | . 12 27 135 Siege Activations . | . . . . Martial Activations . | . . . . Shielding Activations . | . . . . Robots Disrupted . | . . . . Combat Hostiles . | . . . . Robots Corrupted . | . . . . Combat Hostiles . | . . . . Parts Fried . | . . . . Impact Corruptions . | . . . . Robots Melted . | . . . . Combat Hostiles . | . . . . Parts Melted 1 | . 1 . . Heat Transferred 840 | . 544 . 296 Parts Sabotaged . | . . . . Parts Stolen . | . . . . Parts Stripped . | . . . . Power Chain Reactions 1 | . 1 . . Alert | -11 -10 -10 -8 ------- Run | Yrd Mat Sub Mat Maximum Alert Level . | . . . . Low Security (%) 100 | 100 100 . 100 Level 1 . | . . . . Level 2 . | . . . . Level 3 . | . . . . Level 4 . | . . . . Level 5 . | . . . . High Security . | . . . . Max Security . | . . . . Peak Influence 133 | . 133 . 42 Initial 42 | . . . 42 Average 36 | . 48 . 20 Influence Increases 248 | . 158 90 . Destroy 0b10 Robot/C 160 | . 80 80 . Destroy 0b10 Robot/NC 25 | . 25 . . Destroy Leader 32 | . 22 10 . Destroy Structure 31 | . 31 . . Influence Decreases 248 | . 75 91 82 Entered New Map 81 | . . 41 40 Time Decay 157 | . 75 50 32 Lost Part 10 | . . . 10 Squads Dispatched 2 | . 2 . . Investigation 1 | . 1 . . Extermination . | . . . . Reinforcement 1 | . 1 . . Assault . | . . . . Garrison . | . . . . Intercept . | . . . . Searches Triggered . | . . . . Construction Impeded . | . . . . Haulers Reinforced . | . . . . Active Scanning Responses . | . . . . Cargo Convoy Interrupts . | . . . . Stealth | -11 -10 -10 -8 --------- Run | Yrd Mat Sub Mat Distress Signals 1 | . 1 . . Communications Jammed . | . . . . Distress Signals . | . . . . Times Spotted 15 | . 7 4 4 Peak Tracking Total 4 | . 4 3 4 Tactical Retreats . | . . . . Traps | -11 -10 -10 -8 ------- Run | Yrd Mat Sub Mat Traps Triggered 1 | . 1 . . Indirectly . | . . . . Trap Hack Attempts . | . . . . Triggered . | . . . . Disarmed . | . . . . Reprogrammed . | . . . . Reused . | . . . . Traps Extracted . | . . . . Installed . | . . . . Triggered . | . . . . Machines | -11 -10 -10 -8 ---------- Run | Yrd Mat Sub Mat Machines Disabled 1 | . 1 . . Max in Single Turn 1 | . 1 . . Machines Repaired . | . . . . Machines Dismantled . | . . . . Machines Sabotaged . | . . . . Overloaded Fab Kills . | . . . . Hacking | -11 -10 -10 -8 --------- Run | Yrd Mat Sub Mat Machines Accessed 1 | . 1 . . Terminals 1 | . 1 . . Fabricators . | . . . . Repair Stations . | . . . . Recycling Units . | . . . . Scanalyzers . | . . . . Garrison Access . | . . . . Total Hacks 1 | . 1 . . Successful . | . . . . Failed 1 | . 1 . . Catastrophic . | . . . . Database Lockouts . | . . . . Manual 2 | . 2 . . Terminals 1 | . 1 . . Fabricators . | . . . . Repair Stations . | . . . . Recycling Units . | . . . . Scanalyzers . | . . . . Garrison Access . | . . . . Terminal Hacks . | . . . . Fabricator Hacks . | . . . . Repair Station Hacks . | . . . . Recycling Unit Hacks . | . . . . Scanalyzer . | . . . . Garrison Access Hacks . | . . . . Unauthorized Hacks . | . . . . Terminals . | . . . . Fabricators . | . . . . Repair Stations . | . . . . Recycling Units . | . . . . Scanalyzers . | . . . . Garrison Access . | . . . . Data Cores Recovered . | . . . . Used . | . . . . Hacking Detections 1 | . 1 . . Full Trace Events . | . . . . Feedback Events . | . . . . Feedback Blocked . | . . . . Robot Schematics Acquired . | . . . . Robots Built . | . . . . Authchips . | . . . . Time . | . . . . Total Robot Build Rating . | . . . . Part Schematics Acquired . | . . . . Parts Built . | . . . . Authchips . | . . . . Time . | . . . . Total Part Build Rating . | . . . . Part Studies Acquired . | . . . . Parts Repaired . | . . . . Time . | . . . . Parts Recycled . | . . . . Recycled Matter . | . . . . Retrieved Matter . | . . . . Retrieved Components . | . . . . Parts Scanalyzed . | . . . . Part Schematics Acquired . | . . . . Parts Damaged . | . . . . Bothacking | -11 -10 -10 -8 ------------ Run | Yrd Mat Sub Mat Used RIF Installer . | . . . . Robots Hacked . | . . . . Non-combat . | . . . . Combat . | . . . . Robot Hacks Applied . | . . . . Relay Couplers Released . | . . . . Fabnet Peak Effective % . | . . . . Robots Rewired . | . . . . Allies Hacked . | . . . . Hacks Repelled . | . . . . Allies | -11 -10 -10 -8 -------- Run | Yrd Mat Sub Mat Total Allies . | . . . . Largest Group . | . . . . Highest-Rated Group . | . . . . Highest-Rated Ally . | . . . . Total Orders . | . . . . Ally Attacks . | . . . . Total Damage . | . . . . Kills . | . . . . Allies Corrupted . | . . . . Allies Melted . | . . . . Intel | -11 -10 -10 -8 ------- Run | Yrd Mat Sub Mat Active Infowar (turns) 263 | . 61 111 91 Optics 192 | . . 101 91 Structural 159 | . 61 10 88 Machine Analysis 89 | . . . 89 Robot Analysis Total . | . . . . Derelict Logs Recovered . | . . . . Drone Launches . | . . . . Drone Recoveries . | . . . . Exploration | -11 -10 -10 -8 ------------- Run | Yrd Mat Sub Mat Turns Passed 524 | 49 273 111 91 Spaces Moved 322 | 36 170 68 48 Core 12 | 12 . . . Treads . | . . . . Legs 310 | 24 170 68 48 Wheels . | . . . . Hover . | . . . . Flight . | . . . . Fastest Speed 50 | 50 120 120 120 Average Speed 118 | 107 120 120 120 Slowest Speed 150 | 150 120 120 120 Overloaded Moves . | . . . . Propulsion Burnouts . | . . . . Robots Hopped . | . . . . Potential Cave-ins . | . . . . Cave-ins Triggered . | . . . . Exploration Rate (%) 13 | 3 35 8 8 Regions Visited 3 Branch Regions 1 Pre-discovered Areas . | . . . . Known Exits Taken . | . . . . Unknown Exits Taken 3 | 1 1 1 . Scrap Searched . | . . . . Spaces Dug . | . . . . Terrain Destroyed 40 | . 31 9 . Melee . | . . . . Projectile . | . . . . AOE 40 | . 31 9 . Terrain Rammed . | . . . . Walls Destroyed . | . . . . Machines Disabled . | . . . . Actions | -11 -10 -10 -8 --------- Run | Yrd Mat Sub Mat Total 409 | 43 212 89 65 Wait 10 | . . 10 . Move 319 | 35 169 67 48 Hop . | . . . . Pick Up 14 | 2 9 1 2 Fast Attach 8 | 6 2 . . Attach 5 | . . . 5 Detach 1 | . 1 . . Swap 11 | . 7 4 . Drop 9 | . 7 2 . Fire 32 | . 17 5 10 Melee . | . . . . Ram . | . . . . Kick . | . . . . Crush . | . . . . Escape Stasis . | . . . . Rewire . | . . . . Trap . | . . . . Miscellaneous . | . . . . Route ------- -11/Scrapyard -10/Materials (discovered 2 exits: [*Min] / [*Sub]) -10/Subcaves -8/Materials History --------- Turn | Location | Event 2 | -11/Scrapyard | Met Revision 17 8 | -11/Scrapyard | Discovered new exit (range 15) 50 | -11/Scrapyard | Entered Materials 164 | -10/Materials | Discovered new exit (range 12) 232 | -10/Materials | Discovered new exit (range 13) 305 | -10/Materials | Build established: Mutant 323 | -10/Materials | Entered Subcaves 324 | -10/Subcaves | Approached by a straggling Scientist 390 | -10/Subcaves | Discovered new exit (range 12) 434 | -10/Subcaves | Entered Materials 434 | -8/Materials | Evolved 4 slots: Propulsion x2, Utility x2 525 | -8/Materials | Self-destructed Last Messages --------------- 00417_ IX-WTP(O) collects matter. 00422_ Hvy. Assault Rifle fries itself beyond repair. 00424_ Acquired 9 matter. 00426_ Beam Rifle fries itself beyond repair. 00426_ IX-WTP(O) collects matter. PARAMETERS=PROPULSION+2,UTILITY+2 LOCATION=UNKNOWN GOAL=ESCAPE 00440_ >> Machine Analyzer network decryption results: 00440_ Scanalyzer x1 00448_ Acquired Imp. Sensor Array. 00463_ Acquired Airjet. 00486_ EM Pulse Gun destroyed. 00488_ Critical hit (Burn: +37). 00516_ EM Pulse Gun destroyed. 00516_ L-31 Rogue suffers critical hit (Burn). 00521_ Imp. Aluminum Leg severed. 00522_ L-31 Rogue suffers critical hit (Burn). Map ----- +----------------------------------------------------+ | ?????????????????????????????????????????? ?????? | | ?????????????????????????????????????????? ?????? | | ?????????????????????????????????????????? ?????? | | ???????????????????????????????????????? ####? | | ????????????????????????????????????????###/#####? | | ???????????????????????????????????????## ##? | | ???????????????????????????????????????## ##? | | ???????????????????????????????????????## ##? | | ???????????????????????????????????????##""" ##? | | ???????????????????????????????????????##""" ### | | ???????????????????????????????????????##""" ### | | ???????????????????????????????????????## ## | | ???????????????????????????????????????##""" ## | | ???????????????????????????????????????##""" ## | | ?????????????????????????? #####??????##""" ## | | ??????????????????????????############### ## | | ?????????????????????????? ########## ## | | ??????????????????????????? #### ###+###### | | ?????????????????????????? #### | | ??????????????????????????## #### | | ??????????????????????????## #### | | ??????????????????????????## #### ###+###### | | ???????????????????######### ##### ## ## | | ???????????????????######### ##### ## ????## " | | ?????"""???????????##= # ##?## ##?????## " | | ?????"""???????????## @=# ##?## ##?????## | | ?????"""???????????## """ l ##?## ##?"""?##! | | ???????????????????## """ #g ##### ## """?## | | ???????????????????## """ # Y ##### ## """?#### | | ???????????????????## !# g#### # """?#### | | ???????????????????######### # """????? | | ???????????????????######### # ???????? | | ??????????????????????????## # ???????? | | ??????????????????????????######### # ???????? | | ??????????????????????????################???????? | | ?????????????????????????????????#########???????? | | ?????????????????????????????????????????????????? | | ?????????????????????????????????????????????????? | | ?????????????????????????????????????????????????? | | ?????????????????????????????????????????????????? | | ?????????????????????????????????????????????????? | | ?????????????????????????????????????????????????? | | ?????????????????????????????????????????????????? | | ?????????????????????????????????????????????????? | | ?????????????????????????????????????????????????? | | ?????????????????????????????????????????????????? | | ?????????????????????????????????????????????????? | | ?????????????????????????????????????????????????? | | ?????????????????????????????????????????????????? | | ?????????????????????????????????????????????????? | +----------------------------------------------------+ Best States ------------- Heat Dissipation 31 Energy Generation 12 Energy Capacity 265 Matter Stores 300 Matter Capacity 300 Sight Range 18 Terrain Scan Density 10 Evasion (%) 55 Item Schematics ----------------- None Robot Schematics ------------------ None Fabricated ------------ Nothing Repaired ---------- Nothing Studied --------- None Alien Tech Used ----------------- None Achievements -------------- None Challenges ------------ None Game ------ Seed LaserChargeArmor Manual? 0 Play Time 00:11:48 Cumulative 51.2 hours Start 2026.02.11 @ 10:42:10 End 2026.02.11 @ 10:53:14 Sessions 1 Manual Loads 0 Difficulty Rogue Special Mode None Game No. 101 Rogue 101 Adventurer 0 Explorer 0 Win Type - Total 1 Types 1/0/0/0/0/0/0/0/0/0 Lore% 16 Gallery% 30 Achievement% 19 Wizard Run 0 Options --------- Layout 1 ASCII 0 Keyboard 0 Movement Mouse Keybinds 0 Fullscreen 2 Font 20/X11 Map View 50x35 Zoom Use 0% Tactical HUD 1 Map Filters NONE Filters NONE Steam 1 RUN: 15d55743-4df2-405d-b116-b5a529edd910